fUST/lending_fUST_20250602
["ID","MTS","AMOUNT","RATE_DAILY","PERIOD"]
[363700500,1748824240589,-244.58527068,0.00019864,2]
[363700502,1748824240599,-709.31861656,0.00019864,2]
[363700504,1748824240609,-500.0,0.00019864,2]
[363700506,1748824240619,-500.0,0.00019864,2]
[363700508,1748824240629,-709.31861656,0.00019864,2]
[363700510,1748824240638,-500.0,0.00019864,2]
[363700512,1748824240647,-709.31861656,0.00019864,2]
[363700514,1748824240657,-709.31861656,0.00019864,2]
[363700516,1748824240666,-557.77523839,0.00019864,2]
[363700518,1748824240676,-500.0,0.00019864,2]
[363700520,1748824240685,-709.31861656,0.00019864,2]
[363700522,1748824240695,-500.0,0.00019864,2]
[363700524,1748824240704,-500.0,0.00019864,2]
[363700526,1748824240715,-709.31861656,0.00019864,2]
[363700528,1748824240723,-500.0,0.00019864,2]
[363700530,1748824240733,-709.31861656,0.00019864,2]
[363700532,1748824240742,-709.31861656,0.00019864,2]
[363700534,1748824240752,-709.31861656,0.00019864,2]
[363700536,1748824240761,-709.31861656,0.00019864,2]
[363700538,1748824240771,-709.31861656,0.00019864,2]
[363700540,1748824240780,-709.31861656,0.00019864,2]
[363700542,1748824240789,-709.31861656,0.00019864,2]
[363700544,1748824240798,-709.31861656,0.00019864,2]
[363700546,1748824240807,-709.31861656,0.00019864,2]
[363700548,1748824240816,-709.31861656,0.00019864,2]
[363700550,1748824240826,-709.31861656,0.00019864,2]
[363700564,1748824240835,-709.31861656,0.00019864,2]
[363700566,1748824240964,-1574.49,0.00019865,2]
[363700568,1748824240974,-1224.07662887,0.000199,2]
[363700570,1748824240983,-430.0,0.00019922,2]
[363700572,1748824240993,-430.0,0.00019922,2]
[363700574,1748824241002,-506.65,0.00019922,2]
[363700576,1748824241012,-430.0,0.00019922,2]
[363700578,1748824241023,-430.0,0.00019922,2]
[363700580,1748824241032,-430.0,0.00019922,2]
[363700582,1748824241042,-502.16,0.00019922,2]
[363700584,1748824241052,-455.79,0.00019922,2]
[363700586,1748824241062,-3637.54846454,0.00019969,2]
[363700588,1748824241071,-551.47404927,0.00019982,2]
[363700591,1748824241082,-430.0,0.00019982,2]
[363700592,1748824241092,-580.15,0.00019982,2]
[363700594,1748824241102,-430.0,0.00019982,2]
[363700596,1748824241111,-151.0,0.0002,2]
[363700598,1748824241121,-107268.58270446,0.0002,2]
[363700600,1748824241131,-5156.46160245,0.0002,2]
[363700602,1748824241139,-1200.0,0.00020067,2]
[363700604,1748824241149,-3637.54846454,0.00020176,2]
[363700606,1748824241159,-255.954146,0.00020187,2]
[363700608,1748824241171,-430.0,0.00020196,2]
[363700610,1748824241180,-430.0,0.00020196,2]
[363700612,1748824241190,-506.65,0.00020196,2]
[363700614,1748824241199,-430.0,0.00020196,2]
[363700616,1748824241209,-430.0,0.00020196,2]
[363700618,1748824241219,-430.0,0.00020196,2]
[363700620,1748824241228,-502.16,0.00020196,2]
[363700622,1748824241237,-455.79,0.00020196,2]
[363700624,1748824241247,-205.0,0.00020244,2]
[363700626,1748824241257,-430.0,0.00020256,2]
[363700628,1748824241266,-580.15,0.00020256,2]
[363700630,1748824241275,-430.0,0.00020256,2]
[363700632,1748824241285,-3637.54846454,0.00020383,3]
[363700634,1748824241296,-430.0,0.0002047,2]
[363700636,1748824241306,-430.0,0.0002047,2]
[363700638,1748824241316,-506.65,0.0002047,2]
[363700640,1748824241325,-430.0,0.0002047,2]
[363700642,1748824241335,-430.0,0.0002047,2]
[363700644,1748824241345,-430.0,0.0002047,2]
[363700646,1748824241354,-502.16,0.0002047,2]
[363700648,1748824241364,-455.79,0.0002047,2]
[363700651,1748824241374,-587.0,0.00020489,2]
[363700652,1748824241384,-151.0,0.000205,4]
[363700654,1748824241394,-430.0,0.0002053,2]
[363700657,1748824241403,-580.15,0.0002053,2]
[363700659,1748824241413,-430.0,0.0002053,2]
[363700661,1748824241423,-3637.54846454,0.0002059,3]
[363700663,1748824241432,-12666.87825251,0.00020624,3]
[363700664,1748824241441,-1941.11,0.000207,2]
[363700667,1748824241451,-443.76902719,0.00020744,2]
[363700669,1748824241462,-430.0,0.00020744,2]
[363700671,1748824241471,-506.65,0.00020744,2]
[363700673,1748824241481,-430.0,0.00020744,2]
[363700675,1748824241491,-430.0,0.00020744,2]
[363700677,1748824241500,-430.0,0.00020744,2]
[363700679,1748824241510,-502.16,0.00020744,2]
[363700681,1748824241520,-455.79,0.00020744,2]
[363700683,1748824241529,-3637.54846454,0.00020797,4]
[363700685,1748824241539,-357.47,0.000208,2]
[363700687,1748824241549,-430.0,0.00020804,2]
[363700689,1748824241558,-580.15,0.00020804,2]
[363700691,1748824241568,-430.0,0.00020804,2]
[363700693,1748824241578,-1224.07662885,0.00020851,2]
[363700695,1748824241588,-151.0,0.00021,3]
[363700697,1748824241598,-3637.54846454,0.00021003,4]
[363700699,1748824241608,-430.0,0.00021018,2]
[363700701,1748824241618,-506.65,0.00021018,2]
[363700703,1748824241630,-152.19978705,0.00021018,2]
[363700705,1748824241639,-430.0,0.00021018,2]
[363700707,1748824241649,-430.0,0.00021018,2]
[363700709,1748824241659,-502.16,0.00021018,2]
[363700711,1748824241669,-455.79,0.00021018,2]
[363700713,1748824241678,-430.0,0.00021078,2]
[363700715,1748824241689,-580.15,0.00021078,2]
[363700717,1748824241699,-430.0,0.00021078,2]
[363700719,1748824241709,-842.5625,0.0002113,3]
[363700721,1748824241719,-1200.0,0.00021163,2]
[363700723,1748824241728,-217.57,0.000212,2]
[363700725,1748824241737,-3637.54846454,0.0002121,4]
[363700727,1748824241747,-430.0,0.00021292,2]
[363700729,1748824241757,-506.65,0.00021292,2]
[363700731,1748824241767,-313.47550594,0.00021292,2]
[363700733,1748824241777,-430.0,0.00021292,2]
[363700735,1748824241787,-502.16,0.00021292,2]
[363700737,1748824241796,-455.79,0.00021292,2]
[363700739,1748824241806,-430.0,0.00021352,2]
[363700741,1748824241816,-580.15,0.00021352,2]
[363700743,1748824241826,-430.0,0.00021352,2]
[363700746,1748824241836,-3637.54846454,0.00021417,5]
[363700748,1748824241846,-151.0,0.000215,4]
[363700750,1748824241855,-2361.74,0.0002152,2]
[363700751,1748824241864,-213.788228,0.0002156,2]
[363700753,1748824241874,-213.788228,0.0002156,2]
[363700755,1748824241886,-430.0,0.00021566,2]
[363700758,1748824241896,-506.65,0.00021566,2]
[363700760,1748824241906,-433.30733768,0.00021566,2]
[363700762,1748824241916,-502.16,0.00021566,2]
[363700763,1748824241926,-455.79,0.00021566,2]
[363700765,1748824241935,-3637.54846454,0.00021624,5]
[363700768,1748824241946,-430.0,0.00021626,2]
[363700770,1748824241955,-580.15,0.00021626,2]
[363700772,1748824241966,-430.0,0.00021626,2]
[363700774,1748824241976,-150.25210295,0.00021655,2]
[363700776,1748824241985,-1941.11,0.000218,2]
[363700778,1748824241995,-1224.07662885,0.00021801,2]
[363700780,1748824242005,-3637.54846454,0.00021831,6]
[363700782,1748824242015,-430.0,0.0002184,2]
[363700784,1748824242024,-506.65,0.0002184,2]
[363700786,1748824242034,-502.16,0.0002184,2]
[363700788,1748824242043,-455.79,0.0002184,2]
[363700790,1748824242052,-5000.0,0.00021874,2]
[363700792,1748824242062,-430.0,0.000219,2]
[363700794,1748824242071,-580.15,0.000219,2]
[363700796,1748824242080,-359.66,0.000219,2]
[363700798,1748824242090,-611.01090483,0.00021918,2]
[363700800,1748824242099,-364.3782178,0.00021973,2]
[363700802,1748824242109,-357.47,0.00022,7]
[363700804,1748824242118,-151.0,0.00022,3]
[363700806,1748824242129,-171.0,0.00022,2]
[363700808,1748824242139,-151.0,0.00022,4]
[363700810,1748824242148,-3637.54846454,0.00022038,6]
[363700812,1748824242158,-158.296175,0.00022074,2]
[363700814,1748824242168,-430.0,0.00022113,2]
[363700816,1748824242177,-506.65,0.00022113,2]
[363700818,1748824242188,-502.16,0.00022113,2]
[363700820,1748824242198,-455.79,0.00022113,2]
[363700822,1748824242208,-430.0,0.00022174,2]
[363700824,1748824242217,-580.15,0.00022174,2]
[363700826,1748824242227,-3637.54846454,0.00022245,6]
[363700828,1748824242236,-352.4972578,0.00022247,2]
[363700830,1748824242246,-352.9781038,0.00022247,2]
[363700832,1748824242255,-158.4848398,0.00022247,2]
[363700834,1748824242264,-572.3927371,0.00022247,2]
[363700836,1748824242273,-153.0,0.00022247,2]
[363700838,1748824242282,-1200.0,0.00022259,2]
[363700840,1748824242291,-217.57,0.000223,7]
[363700842,1748824242300,-823.0,0.00022374,2]
[363700844,1748824242310,-185.43307616,0.00022384,2]
[363700846,1748824242320,-257.53,0.00022387,2]
[363700848,1748824242330,-506.65,0.00022387,2]
[363700850,1748824242339,-502.16,0.00022387,2]
[363700852,1748824242349,-455.79,0.00022387,2]
[363700854,1748824242359,-254.62797019,0.000224,30]
[363700856,1748824242368,-430.0,0.00022448,2]
[363700858,1748824242379,-580.15,0.00022448,2]
[363700860,1748824242388,-3637.54846454,0.00022452,7]
[363700862,1748824242397,-151.0,0.000225,5]
[363700864,1748824242407,-151.0,0.000225,7]
[363700866,1748824242416,-6898.36184518,0.000225,2]
[363700868,1748824242425,-7498.7979491,0.00022592,2]
[363700870,1748824242435,-5000.0,0.00022592,2]
[363700872,1748824242444,-5000.0,0.00022592,2]
[363700874,1748824242453,-5000.0,0.00022592,2]
[363700876,1748824242462,-5000.0,0.00022592,2]
[363700878,1748824242472,-213.788228,0.00022606,7]
[363700880,1748824242481,-213.788228,0.00022606,7]
[363700882,1748824242491,-151.0,0.00022606,2]
[363700884,1748824242500,-154.67873888,0.00022606,2]
[363700886,1748824242509,-300.0,0.00022606,2]
[363700888,1748824242518,-2000.0,0.00022606,2]
[363700890,1748824242527,-300.0,0.00022606,2]
[363700892,1748824242537,-2000.0,0.00022606,2]
[363700894,1748824242547,-2000.0,0.00022606,2]
[363700896,1748824242556,-300.0,0.00022606,2]
[363700898,1748824242567,-207.4,0.00022606,2]
[363700900,1748824242577,-2000.0,0.00022606,2]
[363700902,1748824242586,-2000.0,0.00022606,2]
[363700904,1748824242595,-300.0,0.00022606,2]
[363700906,1748824242605,-5000.0,0.00022606,2]
[363700908,1748824242614,-2000.0,0.00022606,2]
[363700910,1748824242623,-300.0,0.00022606,2]
[363700911,1748824242634,-2000.0,0.00022606,2]
[363700912,1748824242644,-300.0,0.00022606,2]
[363700913,1748824242654,-2000.0,0.00022606,2]
[363700914,1748824242664,-300.0,0.00022606,2]
[363700915,1748824242673,-2000.0,0.00022606,2]
[363700916,1748824242682,-300.0,0.00022606,2]
[363700917,1748824242692,-2000.0,0.00022606,2]
[363700918,1748824242702,-2000.0,0.00022606,2]
[363700919,1748824242711,-300.0,0.00022606,2]
[363700920,1748824242720,-2000.0,0.00022606,2]
[363700921,1748824242730,-300.0,0.00022606,2]
[363700922,1748824242740,-2000.0,0.00022606,2]
[363700923,1748824242749,-300.0,0.00022606,2]
[363700924,1748824242759,-2000.0,0.00022606,2]
[363700926,1748824242768,-1215.5802251,0.00022606,2]
[363700927,1748824242778,-300.0,0.00022606,2]
[363700929,1748824242788,-181.41279037,0.00022606,2]
[363700931,1748824242798,-300.0,0.00022606,2]
[363700932,1748824242807,-300.0,0.00022606,2]
[363700934,1748824242817,-300.0,0.00022606,2]
[363700935,1748824242827,-3637.54846454,0.00022659,7]
[363700936,1748824242837,-506.65,0.00022661,2]
[363700937,1748824242847,-502.16,0.00022661,2]
[363700939,1748824242856,-455.79,0.00022661,2]
[363700941,1748824242866,-185.43307616,0.00022685,2]
[363700942,1748824242879,-12666.87825251,0.000227,7]
[363700944,1748824242888,-430.0,0.00022722,2]
[363700945,1748824242898,-580.15,0.00022722,2]
[363700946,1748824242909,-1224.07662885,0.00022752,2]
[363700948,1748824242919,-600.0,0.00022848,2]
[363700949,1748824242928,-3637.54846454,0.00022866,8]
[363700950,1748824242937,-19047.58,0.000229,2]
[363700951,1748824242947,-364.3782178,0.00022932,2]
[363700952,1748824242958,-364.3782178,0.00022932,2]
[363700953,1748824242968,-506.65,0.00022935,2]
[363700954,1748824242978,-502.16,0.00022935,2]
[363700955,1748824242988,-455.79,0.00022935,2]
[363700956,1748824242999,-185.50360293,0.00022986,2]
[363700957,1748824243010,-185.43307616,0.00022986,2]
[363700958,1748824243020,-185.50360293,0.00022986,2]
[363700959,1748824243030,-385.01281503,0.00022996,2]
[363700960,1748824243040,-580.15,0.00022996,2]
[363700961,1748824243051,-160.0,0.00023,3]
[363700962,1748824243060,-160.0,0.00023,3]
[363700963,1748824243070,-160.0,0.00023,3]
[363700964,1748824243079,-160.0,0.00023,3]
[363700965,1748824243089,-151.0,0.00023,9]
[363700966,1748824243098,-1941.11,0.00023,2]
[363700967,1748824243108,-160.0,0.00023,3]
[363700968,1748824243117,-151.0,0.00023,7]
[363700969,1748824243126,-423.51412927,0.00023,3]
[363700970,1748824243136,-2233.70799925,0.00023,7]
[363700971,1748824243146,-94869.2769871,0.00023,20]
[363700972,1748824243156,-229.3709046,0.00023,3]
[363700973,1748824243165,-572.3927371,0.00023068,2]
[363700974,1748824243174,-176.4890519,0.00023068,2]
[363700975,1748824243185,-158.4848398,0.00023068,2]
[363700976,1748824243194,-572.3927371,0.00023068,2]
[363700977,1748824243205,-250.0,0.00023071,2]
[363700978,1748824243215,-3637.54846454,0.00023072,8]
[363700979,1748824243225,-751.56940287,0.00023086,2]
[363700980,1748824243235,-151.0,0.000231,10]
[363700981,1748824243245,-272.80097017,0.00023154,2]
[363700982,1748824243255,-5000.0,0.00023154,2]
[363700983,1748824243264,-3148.98,0.00023176,2]
[363700984,1748824243274,-357.47,0.000232,7]
[363700985,1748824243284,-506.65,0.00023209,2]
[363700986,1748824243294,-502.16,0.00023209,2]
[363700987,1748824243304,-455.79,0.00023209,2]
[363700988,1748824243313,-185.43307616,0.0002326,2]
[363700989,1748824243323,-580.15,0.0002327,2]
[363700991,1748824243332,-3637.54846454,0.00023279,8]
[363700992,1748824243342,-459.94199928,0.000233,15]
[363700993,1748824243351,-158.296175,0.00023307,30]
[363700994,1748824243361,-158.296175,0.00023323,7]
[363700995,1748824243371,-2162.844545,0.00023324,3]
[363700996,1748824243382,-1200.0,0.00023355,2]
[363700998,1748824243392,-151.0,0.000234,9]
[363700999,1748824243401,-800.0,0.00023439,2]
[363701000,1748824243410,-800.0,0.00023471,2]
[363701001,1748824243421,-2000.0,0.00023479,2]
[363701002,1748824243431,-156.17876976,0.00023479,2]
[363701003,1748824243447,-464.08112466,0.00023479,2]
[363701004,1748824243459,-1379.74010558,0.00023479,2]
[363701005,1748824243469,-2000.0,0.00023479,2]
[363701006,1748824243479,-2000.0,0.00023479,2]
[363701007,1748824243489,-794.7688812,0.00023479,2]
[363701008,1748824243501,-909.75221106,0.00023479,2]
[363701010,1748824243513,-295.47890774,0.00023479,2]
[363701011,1748824243524,-2000.0,0.00023479,2]
[363701012,1748824243534,-659.52,0.00023479,2]
[363701013,1748824243543,-800.0,0.00023479,2]
[363701014,1748824243553,-506.67748847,0.00023483,2]
[363701015,1748824243563,-502.32512913,0.00023483,2]
[363701016,1748824243573,-456.0,0.00023483,2]
[363701017,1748824243582,-3637.54846454,0.00023486,9]
[363701018,1748824243592,-500.0,0.0002349,2]
[363701019,1748824243602,-151.0,0.000235,8]
[363701020,1748824243612,-151.0,0.000235,10]
[363701021,1748824243621,-499.999999,0.000235,2]
[363701022,1748824243631,-580.15,0.00023544,2]
[363701023,1748824243641,-708.0,0.0002356,2]
[363701024,1748824243651,-1031.49826667,0.0002356,2]
[363701025,1748824243664,-309.76752313,0.0002356,2]
[363701026,1748824243675,-858.7342102,0.0002356,2]
[363701027,1748824243684,-405.0,0.0002356,2]
[363701028,1748824243694,-962.0,0.0002356,2]
[363701029,1748824243704,-800.0,0.00023594,2]
[363701030,1748824243713,-3088.65435801,0.000236,5]
[363701031,1748824243723,-217.57,0.000236,7]
[363701032,1748824243733,-800.0,0.0002361,2]
[363701033,1748824243744,-800.0,0.00023626,2]
[363701034,1748824243754,-800.0,0.00023629,2]
[363701035,1748824243765,-213.788228,0.00023656,7]
[363701036,1748824243774,-213.788228,0.00023656,7]
[363701037,1748824243784,-8318.76806029,0.00023662,2]
[363701038,1748824243803,-12973.81796571,0.00023662,2]
[363701039,1748824243812,-800.0,0.00023669,2]
[363701040,1748824243823,-3637.54846454,0.00023693,9]
[363701041,1748824243833,-133.65055561,0.000237,2]
[363701042,1748824243845,-139.34944439,0.000237,2]
[363701043,1748824243855,-151.0,0.000237,5]
[363701044,1748824243866,-10108.65055561,0.000237,2]
[363701071,1748824246578,-5000.0,0.00022275,2]
[363701072,1748824246589,-219.91,0.0002289,10]
[363701073,1748824246599,-647.44993318,0.000237,2]
[363701075,1748824246613,-5131.52748442,0.000237,2]
[363701077,1748824729698,256.57827,0.00013699,2]
[363701161,1748825432859,-2688.75576695,0.00017009,2]
[363701287,1748825438443,-2311.24423305,0.00017009,2]
[363701289,1748825438453,-300.0,0.00017499,2]
[363701291,1748825438463,-2370.56426834,0.000175,2]
[363701293,1748825438475,-2629.43573166,0.000175,2]
[363701295,1748825438485,-509.25515503,0.00017607,2]
[363701297,1748825438494,-430.0,0.00017607,2]
[363701299,1748825438504,-430.0,0.00017607,2]
[363701302,1748825438514,-430.0,0.00017607,2]
[363701305,1748825438523,-430.0,0.00017607,2]
[363701307,1748825438533,-430.0,0.00017607,2]
[363701308,1748825438543,-287.52792221,0.00017607,2]
[363701309,1748825438555,-142.47207779,0.00017607,2]
[363701310,1748825438566,-430.0,0.00017607,2]
[363701311,1748825438577,-306.14901748,0.00017607,2]
[363701312,1748825438589,-123.85098252,0.00017607,2]
[363701313,1748825438599,-430.0,0.00017607,2]
[363701314,1748825438609,-430.0,0.00017607,2]
[363701315,1748825438619,-430.0,0.00017607,2]
[363701316,1748825438628,-430.0,0.00017607,2]
[363701317,1748825438638,-430.0,0.00017607,2]
[363701318,1748825438648,-430.0,0.00017607,2]
[363701319,1748825438658,-430.0,0.00017607,2]
[363701320,1748825438668,-430.0,0.00017607,2]
[363701321,1748825438678,-430.0,0.00017607,2]
[363701322,1748825438689,-150.51834689,0.00017607,2]
[363701323,1748825438698,-430.0,0.00017607,2]
[363701324,1748825438709,-430.0,0.00017607,2]
[363701325,1748825438718,-430.0,0.00017607,2]
[363701326,1748825438728,-430.0,0.00017607,2]
[363701327,1748825438737,-430.0,0.00017607,2]
[363701328,1748825438747,-430.0,0.00017607,2]
[363701329,1748825438757,-430.0,0.00017607,2]
[363701330,1748825438767,-430.0,0.00017607,2]
[363701331,1748825438777,-430.0,0.00017607,2]
[363701332,1748825438786,-24900.0,0.00017608,2]
[363701333,1748825438796,-177.30792646,0.00017629,2]
[363701334,1748825438813,-430.0,0.00017729,2]
[363701335,1748825438823,-430.0,0.00017729,2]
[363701336,1748825438834,-468.87,0.00017729,2]
[363701337,1748825438843,-430.0,0.00017729,2]
[363701338,1748825438853,-430.0,0.00017881,2]
[363701339,1748825438863,-430.0,0.00017881,2]
[363701340,1748825438873,-430.0,0.00017881,2]
[363701341,1748825438883,-430.0,0.00017881,2]
[363701342,1748825438892,-430.0,0.00017881,2]
[363701343,1748825438902,-430.0,0.00017881,2]
[363701344,1748825438912,-564.49,0.00017881,2]
[363701345,1748825438922,-430.0,0.00017881,2]
[363701346,1748825438932,-430.0,0.00017881,2]
[363701347,1748825438942,-430.0,0.00017881,2]
[363701348,1748825438951,-430.0,0.00017881,2]
[363701349,1748825438961,-430.0,0.00017881,2]
[363701350,1748825438971,-430.0,0.00017881,2]
[363701351,1748825438981,-430.0,0.00017881,2]
[363701352,1748825438991,-430.0,0.00017881,2]
[363701353,1748825439001,-430.0,0.00017881,2]
[363701354,1748825439011,-329.42,0.00017881,2]
[363701355,1748825439021,-250.23004983,0.00017881,2]
[363701356,1748825439031,-430.0,0.00017881,2]
[363701357,1748825439041,-430.0,0.00017881,2]
[363701358,1748825439051,-1774.07234409,0.000179,2]
[363701359,1748825439060,-430.0,0.00018003,2]
[363701360,1748825439069,-430.0,0.00018003,2]
[363701361,1748825439080,-430.0,0.00018003,2]
[363701362,1748825439090,-1774.072344,0.00018107,2]
[363701363,1748825439099,-229.11,0.00018155,2]
[363701364,1748825439109,-153.88,0.00018155,2]
[363701365,1748825439119,-430.0,0.00018155,2]
[363701366,1748825439129,-239.49,0.00018155,2]
[363701367,1748825439138,-430.0,0.00018155,2]
[363701368,1748825439148,-430.0,0.00018155,2]
[363701369,1748825439157,-430.0,0.00018155,2]
[363701370,1748825439167,-430.0,0.00018155,2]
[363701371,1748825439177,-430.0,0.00018155,2]
[363701372,1748825439187,-430.0,0.00018155,2]
[363701373,1748825439197,-430.0,0.00018155,2]
[363701374,1748825439207,-430.0,0.00018155,2]
[363701375,1748825439217,-430.0,0.00018155,2]
[363701376,1748825439226,-430.0,0.00018155,2]
[363701377,1748825439235,-744.3,0.00018227,2]
[363701378,1748825439245,-430.0,0.00018277,2]
[363701379,1748825439254,-430.0,0.00018277,2]
[363701380,1748825439264,-430.0,0.00018277,2]
[363701381,1748825439274,-440.5534405,0.00018283,2]
[363701382,1748825439283,-500.0,0.000183,2]
[363701383,1748825439292,-1774.072344,0.00018314,2]
[363701384,1748825439302,-430.0,0.00018429,2]
[363701385,1748825439312,-430.0,0.00018429,2]
[363701386,1748825439322,-430.0,0.00018429,2]
[363701387,1748825439331,-411.85079157,0.00018429,2]
[363701388,1748825439340,-430.0,0.00018429,2]
[363701389,1748825439349,-423.12972372,0.00018429,2]
[363701390,1748825439360,-430.0,0.00018429,2]
[363701391,1748825439369,-430.0,0.00018429,2]
[363701392,1748825439379,-430.0,0.00018429,2]
[363701393,1748825439388,-430.0,0.00018429,2]
[363701394,1748825439398,-1774.072344,0.00018521,2]
[363701395,1748825439411,-430.0,0.00018551,2]
[363701396,1748825439420,-430.0,0.00018551,2]
[363701397,1748825439432,-430.0,0.00018551,2]
[363701398,1748825439441,-430.0,0.00018703,2]
[363701399,1748825439451,-430.0,0.00018703,2]
[363701400,1748825439462,-430.0,0.00018703,2]
[363701401,1748825439471,-430.0,0.00018703,2]
[363701402,1748825439490,-430.0,0.00018703,2]
[363701403,1748825439500,-430.0,0.00018703,2]
[363701404,1748825439510,-430.0,0.00018703,2]
[363701405,1748825439520,-430.0,0.00018703,2]
[363701406,1748825439530,-1774.072344,0.00018728,2]
[363701407,1748825439539,-430.0,0.00018825,2]
[363701408,1748825439549,-430.0,0.00018825,2]
[363701409,1748825439558,-430.0,0.00018825,2]
[363701410,1748825439568,-907.67132712,0.00018848,2]
[363701411,1748825439578,-438.27119838,0.000189,2]
[363701412,1748825439587,-1774.072344,0.00018934,2]
[363701413,1748825439597,-1000.0,0.00018971,2]
[363701414,1748825439606,-430.0,0.00018977,2]
[363701415,1748825439616,-262.53978705,0.00018977,2]
[363701416,1748825439626,-430.0,0.00018977,2]
[363701417,1748825439635,-430.0,0.00018977,2]
[363701418,1748825439646,-430.0,0.00018977,2]
[363701419,1748825439655,-430.0,0.00018977,2]
[363701420,1748825439665,-430.0,0.00018977,2]
[363701421,1748825439675,-430.0,0.00018977,2]
[363701422,1748825439685,-430.0,0.00019099,2]
[363701423,1748825439695,-430.0,0.00019099,2]
[363701424,1748825439704,-430.0,0.00019099,2]
[363701425,1748825439714,-420.0,0.00019103,2]
[363701426,1748825439724,-1774.072344,0.00019141,2]
[363701427,1748825439734,-423.51412927,0.00019171,2]
[363701428,1748825439742,-160.0,0.00019171,2]
[363701429,1748825439750,-160.0,0.00019171,2]
[363701430,1748825439759,-229.3709046,0.00019171,2]
[363701431,1748825439768,-160.0,0.00019171,2]
[363701432,1748825439777,-160.0,0.00019171,2]
[363701433,1748825439787,-12666.87825251,0.00019171,2]
[363701434,1748825439796,-160.0,0.00019171,2]
[363701435,1748825439805,-212.80060342,0.00019171,2]
[363701436,1748825439815,-160.0,0.00019171,2]
[363701437,1748825439950,-842.5625,0.00019171,2]
[363701438,1748825439963,-160.0,0.00019171,2]
[363701439,1748825439973,-173.899305,0.00019178,2]
[363701440,1748825439983,-430.0,0.00019251,2]
[363701441,1748825439992,-430.0,0.00019251,2]
[363701442,1748825440002,-421.41550594,0.00019251,2]
[363701443,1748825440012,-430.0,0.00019251,2]
[363701445,1748825440022,-430.0,0.00019251,2]
[363701446,1748825440032,-430.0,0.00019251,2]
[363701447,1748825440042,-152.67902719,0.00019251,2]
[363701448,1748825440051,-1774.072344,0.00019348,2]
[363701449,1748825440061,-430.0,0.00019373,2]
[363701450,1748825440071,-430.0,0.00019373,2]
[363701451,1748825440080,-430.0,0.00019373,2]
[363701452,1748825440090,-430.0,0.00019525,2]
[363701453,1748825440099,-430.0,0.00019525,2]
[363701454,1748825440109,-430.0,0.00019525,2]
[363701455,1748825440119,-430.0,0.00019525,2]
[363701457,1748825440128,-430.0,0.00019525,2]
[363701459,1748825440138,-1774.072344,0.00019555,2]
[363701461,1748825440147,-294.44,0.00019594,2]
[363701463,1748825440157,-385.01281503,0.00019647,2]
[363701465,1748825440167,-430.0,0.00019647,2]
[363701467,1748825440177,-377.45,0.00019647,2]
[363701469,1748825440187,-1774.072344,0.00019762,2]
[363701471,1748825440196,-430.0,0.00019799,2]
[363701473,1748825440206,-430.0,0.00019799,2]
[363701475,1748825440216,-430.0,0.00019799,2]
[363701476,1748825440225,-430.0,0.00019799,2]
[363701479,1748825440235,-430.0,0.00019799,2]
[363701481,1748825440245,-1488.61,0.00019884,2]
[363701483,1748825440254,-430.0,0.00019921,2]
[363701485,1748825440264,-1774.072344,0.00019969,2]